[Event "Late-Titled-Tuesday-Blitz-April-30-2024"]
[Site "Chess.com"]
[Date "2024.04.30"]
[Round "9"]
[White "ChEsper99"]
[Black "falzehope0"]
[Result "1-0"]
[WhiteElo "2268"]
[BlackElo "2410"]
[TimeControl "180+1"]
[EndTime "15:46:05 PDT"]
[Termination "ChEsper99 won by checkmate"]

1. d4 {[%clk 0:02:59]} 1... e6 {[%clk 0:02:52.9]} 2. Bf4 {[%clk 0:02:58.4]} 2...
d5 {[%clk 0:02:52.7]} 3. Nf3 {[%clk 0:02:57.6]} 3... Ne7 {[%clk 0:02:52.9]} 4.
e3 {[%clk 0:02:56.5]} 4... Ng6 {[%clk 0:02:53.3]} 5. Bg3 {[%clk 0:02:56.4]} 5...
Be7 {[%clk 0:02:52.1]} 6. c3 {[%clk 0:02:56.2]} 6... O-O {[%clk 0:02:49.2]} 7.
Bd3 {[%clk 0:02:56.5]} 7... f5 {[%clk 0:02:49.2]} 8. Ne5 {[%clk 0:02:52.4]} 8...
Nxe5 {[%clk 0:02:42]} 9. Bxe5 {[%clk 0:02:53.3]} 9... Nd7 {[%clk 0:02:41.4]} 10.
Bg3 {[%clk 0:02:52.5]} 10... Nf6 {[%clk 0:02:40.9]} 11. f3 {[%clk 0:02:47.4]}
11... c5 {[%clk 0:02:39.7]} 12. O-O {[%clk 0:02:42.9]} 12... Nh5 {[%clk
0:02:39.2]} 13. Be5 {[%clk 0:02:42.1]} 13... c4 {[%clk 0:02:31.4]} 14. Bc2
{[%clk 0:02:38.4]} 14... b5 {[%clk 0:02:31.7]} 15. Nd2 {[%clk 0:02:34.1]} 15...
b4 {[%clk 0:02:30.1]} 16. e4 {[%clk 0:02:34]} 16... bxc3 {[%clk 0:02:26.9]} 17.
bxc3 {[%clk 0:02:33.7]} 17... f4 {[%clk 0:02:20.2]} 18. exd5 {[%clk 0:02:30]}
18... exd5 {[%clk 0:02:21.1]} 19. Qb1 {[%clk 0:02:18.3]} 19... h6 {[%clk
0:02:15]} 20. Bh7+ {[%clk 0:02:07.4]} 20... Kh8 {[%clk 0:02:14.2]} 21. Qg6
{[%clk 0:02:04.6]} 21... Nf6 {[%clk 0:01:24.8]} 22. Bxf6 {[%clk 0:01:40.6]}
22... Bxf6 {[%clk 0:01:21.1]} 23. Qc2 {[%clk 0:01:33.5]} 23... Qa5 {[%clk
0:01:16.9]} 24. Bg6 {[%clk 0:01:30]} 24... Bd7 {[%clk 0:01:16.1]} 25. Rab1
{[%clk 0:01:18.1]} 25... Ba4 {[%clk 0:01:15.5]} 26. Qb2 {[%clk 0:01:15.5]} 26...
Bc6 {[%clk 0:01:03.7]} 27. Rfe1 {[%clk 0:00:53]} 27... Bd8 {[%clk 0:00:45]} 28.
Re5 {[%clk 0:00:29.3]} 28... Bc7 {[%clk 0:00:39.9]} 29. Re6 {[%clk 0:00:23.8]}
29... Qa4 {[%clk 0:00:30.9]} 30. Qb4 {[%clk 0:00:19.7]} 30... Ba5 {[%clk
0:00:27.5]} 31. Qxa4 {[%clk 0:00:16.7]} 31... Bxa4 {[%clk 0:00:27.1]} 32. Rc1
{[%clk 0:00:09.4]} 32... Rf6 {[%clk 0:00:23.5]} 33. Rxf6 {[%clk 0:00:09.3]}
33... gxf6 {[%clk 0:00:23.3]} 34. Bf7 {[%clk 0:00:09.4]} 34... Rd8 {[%clk
0:00:21.7]} 35. Kf2 {[%clk 0:00:06.3]} 35... Kg7 {[%clk 0:00:20.7]} 36. Be6
{[%clk 0:00:05.6]} 36... Rd6 {[%clk 0:00:20.6]} 37. Bf5 {[%clk 0:00:05.9]} 37...
Bd7 {[%clk 0:00:18.1]} 38. Bxd7 {[%clk 0:00:05.5]} 38... Rxd7 {[%clk 0:00:19]}
39. Ke2 {[%clk 0:00:02.8]} 39... Re7+ {[%clk 0:00:19.3]} 40. Kd1 {[%clk
0:00:02.8]} 40... Re3 {[%clk 0:00:19.9]} 41. Nb1 {[%clk 0:00:02.6]} 41... Rd3+
{[%clk 0:00:18.5]} 42. Ke2 {[%clk 0:00:02]} 42... Re3+ {[%clk 0:00:18]} 43. Kd2
{[%clk 0:00:02]} 43... Rd3+ {[%clk 0:00:17.5]} 44. Ke2 {[%clk 0:00:02.1]} 44...
Kg6 {[%clk 0:00:17.3]} 45. Rd1 {[%clk 0:00:01.6]} 45... Re3+ {[%clk 0:00:15.6]}
46. Kd2 {[%clk 0:00:02]} 46... Rd3+ {[%clk 0:00:12.7]} 47. Kc2 {[%clk
0:00:02.2]} 47... Rxd1 {[%clk 0:00:12.4]} 48. Kxd1 {[%clk 0:00:02.5]} 48... Kf5
{[%clk 0:00:13.3]} 49. Kd2 {[%clk 0:00:02.7]} 49... Bc7 {[%clk 0:00:13.3]} 50.
Na3 {[%clk 0:00:02.9]} 50... a6 {[%clk 0:00:12.2]} 51. Nc2 {[%clk 0:00:02.9]}
51... Ba5 {[%clk 0:00:11.2]} 52. Na3 {[%clk 0:00:02.9]} 52... Ke6 {[%clk
0:00:11.3]} 53. Nb1 {[%clk 0:00:03.2]} 53... Kd6 {[%clk 0:00:11.9]} 54. Kc2
{[%clk 0:00:02.9]} 54... Kc6 {[%clk 0:00:12.1]} 55. Nd2 {[%clk 0:00:02.3]} 55...
Kb5 {[%clk 0:00:11.8]} 56. Nf1 {[%clk 0:00:02.6]} 56... Ka4 {[%clk 0:00:12.3]}
57. Kb2 {[%clk 0:00:02.9]} 57... Bc7 {[%clk 0:00:11.6]} 58. h4 {[%clk
0:00:03.3]} 58... Bd6 {[%clk 0:00:11.8]} 59. h5 {[%clk 0:00:03.7]} 59... Ba3+
{[%clk 0:00:12.6]} 60. Kc2 {[%clk 0:00:03.9]} 60... Be7 {[%clk 0:00:12.1]} 61.
Nh2 {[%clk 0:00:04.3]} 61... Ka3 {[%clk 0:00:12.7]} 62. Ng4 {[%clk 0:00:04.6]}
62... Kxa2 {[%clk 0:00:11.1]} 63. Nxh6 {[%clk 0:00:05.1]} 63... Bf8 {[%clk
0:00:09.6]} 64. Nf5 {[%clk 0:00:05.1]} 64... Ka3 {[%clk 0:00:09.1]} 65. h6
{[%clk 0:00:05.4]} 65... Bxh6 {[%clk 0:00:08.4]} 66. Nxh6 {[%clk 0:00:06.2]}
66... Ka4 {[%clk 0:00:08.8]} 67. Ng4 {[%clk 0:00:05]} 67... Kb5 {[%clk
0:00:09.7]} 68. Nxf6 {[%clk 0:00:05.2]} 68... Kc6 {[%clk 0:00:10.3]} 69. Nh5
{[%clk 0:00:05.2]} 69... Kd6 {[%clk 0:00:09.8]} 70. Nxf4 {[%clk 0:00:05.7]}
70... a5 {[%clk 0:00:09.5]} 71. g4 {[%clk 0:00:06]} 71... a4 {[%clk 0:00:09.5]}
72. g5 {[%clk 0:00:05.7]} 72... a3 {[%clk 0:00:10.1]} 73. Nh5 {[%clk 0:00:04.5]}
73... Ke6 {[%clk 0:00:10.1]} 74. Ng3 {[%clk 0:00:04.2]} 74... Kd6 {[%clk
0:00:09.7]} 75. f4 {[%clk 0:00:04.5]} 75... Ke6 {[%clk 0:00:10.3]} 76. f5+
{[%clk 0:00:04.3]} 76... Kd6 {[%clk 0:00:10.7]} 77. Kb1 {[%clk 0:00:04.6]} 77...
Ke7 {[%clk 0:00:10]} 78. Ka2 {[%clk 0:00:05]} 78... Kf7 {[%clk 0:00:09]} 79.
Kxa3 {[%clk 0:00:05.3]} 79... Ke7 {[%clk 0:00:09.6]} 80. Kb4 {[%clk 0:00:05.5]}
80... Kd7 {[%clk 0:00:10.2]} 81. Kc5 {[%clk 0:00:05.8]} 81... Kc7 {[%clk
0:00:10.6]} 82. Kxd5 {[%clk 0:00:06.3]} 82... Kd7 {[%clk 0:00:11.5]} 83. Kxc4
{[%clk 0:00:06.6]} 83... Ke7 {[%clk 0:00:12.4]} 84. Kd5 {[%clk 0:00:07.2]} 84...
Kd7 {[%clk 0:00:13.3]} 85. g6 {[%clk 0:00:07.5]} 85... Ke7 {[%clk 0:00:14.2]}
86. c4 {[%clk 0:00:08.2]} 86... Kf6 {[%clk 0:00:14.7]} 87. c5 {[%clk 0:00:09.1]}
87... Ke7 {[%clk 0:00:15.3]} 88. Ke5 {[%clk 0:00:09.3]} 88... Kd7 {[%clk
0:00:15.6]} 89. g7 {[%clk 0:00:09.8]} 89... Ke7 {[%clk 0:00:16.5]} 90. f6+
{[%clk 0:00:09.8]} 90... Kd7 {[%clk 0:00:17.4]} 91. f7 {[%clk 0:00:09.9]} 91...
Kc6 {[%clk 0:00:18.3]} 92. f8=Q {[%clk 0:00:10.1]} 92... Kd7 {[%clk 0:00:19.2]}
93. Qd6+ {[%clk 0:00:09.7]} 93... Kc8 {[%clk 0:00:16.4]} 94. g8=Q+ {[%clk
0:00:10.6]} 94... Kb7 {[%clk 0:00:17]} 95. Qgb8# {[%clk 0:00:10.9]} 1-0

[Event "Late-Titled-Tuesday-Blitz-April-30-2024"]
[Site "Chess.com"]
[Date "2024.04.30"]
[Round "9"]
[White "CDOEspiao"]
[Black "BeanScreen"]
[Result "1-0"]
[WhiteElo "2563"]
[BlackElo "2680"]
[TimeControl "180+1"]
[EndTime "15:46:20 PDT"]
[Termination "CDOEspiao won by checkmate"]

1. Nf3 {[%clk 0:02:59.2]} 1... d5 {[%clk 0:02:59.3]} 2. g3 {[%clk 0:02:58.9]}
2... c6 {[%clk 0:02:58.9]} 3. Bg2 {[%clk 0:02:59.3]} 3... Bg4 {[%clk 0:02:59]}
4. h3 {[%clk 0:02:58]} 4... Bh5 {[%clk 0:02:58.4]} 5. O-O {[%clk 0:02:56.7]}
5... Nd7 {[%clk 0:02:58.6]} 6. d3 {[%clk 0:02:57]} 6... e5 {[%clk 0:02:58.3]} 7.
e4 {[%clk 0:02:56.4]} 7... Ngf6 {[%clk 0:02:56.7]} 8. Qe1 {[%clk 0:02:56]} 8...
dxe4 {[%clk 0:02:55.9]} 9. dxe4 {[%clk 0:02:56.5]} 9... Be7 {[%clk 0:02:53.4]}
10. Nbd2 {[%clk 0:02:56.5]} 10... O-O {[%clk 0:02:49.7]} 11. Nc4 {[%clk
0:02:56.7]} 11... Qc7 {[%clk 0:02:49.8]} 12. a4 {[%clk 0:02:57]} 12... b5 {[%clk
0:02:49]} 13. axb5 {[%clk 0:02:41.9]} 13... cxb5 {[%clk 0:02:49.9]} 14. Ne3
{[%clk 0:02:42.3]} 14... Bg6 {[%clk 0:02:41.9]} 15. Nh4 {[%clk 0:02:32.6]} 15...
Rfe8 {[%clk 0:02:02.8]} 16. Nhf5 {[%clk 0:02:31.5]} 16... Bf8 {[%clk 0:02:01.6]}
17. g4 {[%clk 0:02:29.2]} 17... Nc5 {[%clk 0:01:54.7]} 18. Nd5 {[%clk
0:01:33.9]} 18... Nxd5 {[%clk 0:01:53.3]} 19. exd5 {[%clk 0:01:34.8]} 19... Bxf5
{[%clk 0:01:50.9]} 20. gxf5 {[%clk 0:01:27.2]} 20... Bd6 {[%clk 0:01:50.4]} 21.
Be3 {[%clk 0:01:20.8]} 21... e4 {[%clk 0:01:42.9]} 22. Qa5 {[%clk 0:01:17.1]}
22... Qe7 {[%clk 0:01:40.5]} 23. Bd4 {[%clk 0:01:03.9]} 23... a6 {[%clk
0:01:24.7]} 24. Qd2 {[%clk 0:00:57.9]} 24... Qh4 {[%clk 0:01:11.5]} 25. Rfe1
{[%clk 0:00:49]} 25... Nd7 {[%clk 0:00:54.3]} 26. b4 {[%clk 0:00:37.4]} 26...
Nf6 {[%clk 0:00:53.4]} 27. Be3 {[%clk 0:00:26.7]} 27... h6 {[%clk 0:00:44.3]}
28. Ra3 {[%clk 0:00:22.5]} 28... Nh5 {[%clk 0:00:42.4]} 29. Bc5 {[%clk
0:00:19.1]} 29... Bf4 {[%clk 0:00:30.6]} 30. Be3 {[%clk 0:00:12.4]} 30... Rad8
{[%clk 0:00:16]} 31. Rxa6 {[%clk 0:00:10.4]} 31... Re5 {[%clk 0:00:16.6]} 32. d6
{[%clk 0:00:09.7]} 32... Rxf5 {[%clk 0:00:16.1]} 33. Bxe4 {[%clk 0:00:09.4]}
33... Rg5+ {[%clk 0:00:11.5]} 34. Kf1 {[%clk 0:00:09.9]} 34... Qxh3+ {[%clk
0:00:08]} 35. Ke2 {[%clk 0:00:10.3]} 35... Bxe3 {[%clk 0:00:07]} 36. Qxe3 {[%clk
0:00:10.4]} 36... Qg4+ {[%clk 0:00:05.4]} 37. Bf3 {[%clk 0:00:10.5]} 37... Nf4+
{[%clk 0:00:04.8]} 38. Kd1 {[%clk 0:00:07.7]} 38... Qf5 {[%clk 0:00:05.4]} 39.
Kc1 {[%clk 0:00:06.4]} 39... Rg6 {[%clk 0:00:05.2]} 40. Be4 {[%clk 0:00:06.6]}
40... Qg5 {[%clk 0:00:03.6]} 41. Bxg6 {[%clk 0:00:06.9]} 41... fxg6 {[%clk
0:00:04.2]} 42. Qb3+ {[%clk 0:00:05.1]} 42... Kh7 {[%clk 0:00:04.1]} 43. Kb1
{[%clk 0:00:05.7]} 43... Qf6 {[%clk 0:00:03.7]} 44. Qb2 {[%clk 0:00:05.7]} 44...
Qf5 {[%clk 0:00:03.6]} 45. Rc6 {[%clk 0:00:05.6]} 45... Rd7 {[%clk 0:00:03.5]}
46. Rc5 {[%clk 0:00:06.1]} 46... Qf6 {[%clk 0:00:03.6]} 47. Re7 {[%clk
0:00:06.6]} 47... Rxd6 {[%clk 0:00:03.3]} 48. Qxf6 {[%clk 0:00:06.1]} 48... Rxf6
{[%clk 0:00:04.2]} 49. Rcc7 {[%clk 0:00:05.6]} 49... Ne6 {[%clk 0:00:03.3]} 50.
Rb7 {[%clk 0:00:06]} 50... g5 {[%clk 0:00:03.2]} 51. Rb6 {[%clk 0:00:06]} 51...
Rxf2 {[%clk 0:00:00.6]} 52. Rbxe6 {[%clk 0:00:06.4]} 52... Rf1+ {[%clk
0:00:01.5]} 53. Kb2 {[%clk 0:00:06.8]} 53... g4 {[%clk 0:00:02.1]} 54. Rb6
{[%clk 0:00:06.5]} 54... g3 {[%clk 0:00:02.2]} 55. Rbb7 {[%clk 0:00:07.1]} 55...
h5 {[%clk 0:00:02.1]} 56. Rxg7+ {[%clk 0:00:07.7]} 56... Kh6 {[%clk 0:00:03]}
57. Rxg3 {[%clk 0:00:08.2]} 57... h4 {[%clk 0:00:03.5]} 58. Rh3 {[%clk 0:00:08]}
58... Kg5 {[%clk 0:00:03.6]} 59. Rh7 {[%clk 0:00:08.2]} 59... Kg4 {[%clk
0:00:04.5]} 60. R3xh4+ {[%clk 0:00:08.1]} 60... Kg3 {[%clk 0:00:05.1]} 61. R4h6
{[%clk 0:00:08.3]} 61... Rf4 {[%clk 0:00:04.6]} 62. Rg6+ {[%clk 0:00:08.7]}
62... Kf2 {[%clk 0:00:04.8]} 63. Kb3 {[%clk 0:00:07.3]} 63... Ke3 {[%clk
0:00:04.8]} 64. Rh3+ {[%clk 0:00:07.1]} 64... Kd4 {[%clk 0:00:04.5]} 65. Rhg3
{[%clk 0:00:07.1]} 65... Ke5 {[%clk 0:00:04.3]} 66. R6g5+ {[%clk 0:00:07.4]}
66... Kf6 {[%clk 0:00:04.4]} 67. R5g4 {[%clk 0:00:08]} 67... Rf1 {[%clk
0:00:04.2]} 68. Rg6+ {[%clk 0:00:07.6]} 68... Kf5 {[%clk 0:00:04.6]} 69. R6g5+
{[%clk 0:00:08.2]} 69... Kf4 {[%clk 0:00:04.7]} 70. Rxb5 {[%clk 0:00:08.8]}
70... Kxg3 {[%clk 0:00:04.8]} 71. Re5 {[%clk 0:00:07.7]} 71... Kf4 {[%clk
0:00:04.9]} 72. Re8 {[%clk 0:00:07.7]} 72... Kg5 {[%clk 0:00:04.1]} 73. Kc4
{[%clk 0:00:07.7]} 73... Kg6 {[%clk 0:00:04]} 74. Kb5 {[%clk 0:00:07.8]} 74...
Kf7 {[%clk 0:00:04.3]} 75. Re2 {[%clk 0:00:07.5]} 75... Rf5+ {[%clk 0:00:03.9]}
76. Ka4 {[%clk 0:00:07.5]} 76... Rf1 {[%clk 0:00:03]} 77. c4 {[%clk 0:00:07.6]}
77... Ra1+ {[%clk 0:00:02.6]} 78. Kb5 {[%clk 0:00:07.8]} 78... Rf1 {[%clk
0:00:02.1]} 79. c5 {[%clk 0:00:08.2]} 79... Rf6 {[%clk 0:00:02.4]} 80. c6 {[%clk
0:00:08.4]} 80... Rf5+ {[%clk 0:00:02.6]} 81. Kb6 {[%clk 0:00:08.9]} 81... Rf4
{[%clk 0:00:03]} 82. b5 {[%clk 0:00:09.4]} 82... Rf6 {[%clk 0:00:02.7]} 83. Kb7
{[%clk 0:00:09.4]} 83... Kg7 {[%clk 0:00:03.2]} 84. b6 {[%clk 0:00:09.6]} 84...
Rf7+ {[%clk 0:00:03.4]} 85. c7 {[%clk 0:00:09.9]} 85... Kg6 {[%clk 0:00:03.5]}
86. Kb8 {[%clk 0:00:10]} 86... Kg7 {[%clk 0:00:03.8]} 87. c8=Q {[%clk
0:00:09.8]} 87... Kg6 {[%clk 0:00:03.5]} 88. Qg4+ {[%clk 0:00:09.6]} 88... Kf6
{[%clk 0:00:02.9]} 89. Re6# {[%clk 0:00:09.8]} 1-0

[Event "Late-Titled-Tuesday-Blitz-April-30-2024"]
[Site "Chess.com"]
[Date "2024.04.30"]
[Round "9"]
[White "Msb2"]
[Black "Alex_Sahakyan2006"]
[Result "1/2-1/2"]
[WhiteElo "3021"]
[BlackElo "2829"]
[TimeControl "180+1"]
[EndTime "15:46:23 PDT"]
[Termination "Game drawn by 50-move rule"]

1. d4 {[%clk 0:03:00.9]} 1... Nf6 {[%clk 0:03:00.1]} 2. c4 {[%clk 0:03:01.4]}
2... c5 {[%clk 0:03:00.2]} 3. d5 {[%clk 0:03:01.5]} 3... b5 {[%clk 0:03:00.8]}
4. cxb5 {[%clk 0:03:02.4]} 4... a6 {[%clk 0:03:01]} 5. bxa6 {[%clk 0:03:03.3]}
5... e6 {[%clk 0:03:01.3]} 6. dxe6 {[%clk 0:02:57.9]} 6... fxe6 {[%clk
0:03:01.4]} 7. Nc3 {[%clk 0:02:58.2]} 7... d5 {[%clk 0:03:01.6]} 8. g3 {[%clk
0:02:58.9]} 8... Bxa6 {[%clk 0:02:58.5]} 9. Bg2 {[%clk 0:02:59.2]} 9... Nc6
{[%clk 0:02:52.2]} 10. Nh3 {[%clk 0:02:59.6]} 10... Bd6 {[%clk 0:02:44.8]} 11.
O-O {[%clk 0:02:57.8]} 11... O-O {[%clk 0:02:45.1]} 12. Nf4 {[%clk 0:02:50.4]}
12... Qe7 {[%clk 0:02:12.3]} 13. Ncxd5 {[%clk 0:02:37.2]} 13... exd5 {[%clk
0:02:05.3]} 14. Nxd5 {[%clk 0:02:38.1]} 14... Qxe2 {[%clk 0:00:54.2]} 15. Nxf6+
{[%clk 0:02:30.6]} 15... Rxf6 {[%clk 0:00:55.1]} 16. Qxe2 {[%clk 0:02:24.1]}
16... Bxe2 {[%clk 0:00:54.5]} 17. Bxc6 {[%clk 0:02:24.8]} 17... Raf8 {[%clk
0:00:53.7]} 18. Bd5+ {[%clk 0:02:18.5]} 18... Kh8 {[%clk 0:00:53.7]} 19. Re1
{[%clk 0:02:19.1]} 19... Rxf2 {[%clk 0:00:47.9]} 20. Be3 {[%clk 0:02:14.8]}
20... R2f5 {[%clk 0:00:48]} 21. Rxe2 {[%clk 0:02:06.2]} 21... Rxd5 {[%clk
0:00:48.2]} 22. Rf1 {[%clk 0:02:06]} 22... Re8 {[%clk 0:00:44.6]} 23. Rd2 {[%clk
0:02:03.4]} 23... Rxd2 {[%clk 0:00:42.1]} 24. Bxd2 {[%clk 0:02:04.3]} 24... Be5
{[%clk 0:00:37.8]} 25. Bc3 {[%clk 0:01:55.2]} 25... Bxc3 {[%clk 0:00:19.1]} 26.
bxc3 {[%clk 0:01:56.1]} 26... Ra8 {[%clk 0:00:20]} 27. a4 {[%clk 0:01:56.8]}
27... Kg8 {[%clk 0:00:20.3]} 28. Ra1 {[%clk 0:01:57.2]} 28... Kf7 {[%clk
0:00:17.4]} 29. Kf2 {[%clk 0:01:57.5]} 29... Ke6 {[%clk 0:00:17.8]} 30. c4
{[%clk 0:01:58.1]} 30... Ra5 {[%clk 0:00:09.8]} 31. Ke3 {[%clk 0:01:58]} 31...
Kd6 {[%clk 0:00:10.4]} 32. Kd3 {[%clk 0:01:58.5]} 32... Kc6 {[%clk 0:00:10.8]}
33. Kc3 {[%clk 0:01:59.1]} 33... Kb6 {[%clk 0:00:10.2]} 34. Rb1+ {[%clk
0:01:52]} 34... Kc6 {[%clk 0:00:10.5]} 35. Ra1 {[%clk 0:01:49.4]} 35... Kb6
{[%clk 0:00:09.8]} 36. Kb3 {[%clk 0:01:42.4]} 36... Ra7 {[%clk 0:00:10]} 37. Re1
{[%clk 0:01:41.5]} 37... Rf7 {[%clk 0:00:07.3]} 38. Re3 {[%clk 0:01:32.3]} 38...
Rf2 {[%clk 0:00:07.1]} 39. h4 {[%clk 0:01:32.9]} 39... g6 {[%clk 0:00:04.6]} 40.
Kc3 {[%clk 0:01:15.1]} 40... Ka5 {[%clk 0:00:05]} 41. Kd3 {[%clk 0:01:06.8]}
41... Kxa4 {[%clk 0:00:03.9]} 42. Re7 {[%clk 0:01:07.5]} 42... Rf3+ {[%clk
0:00:03.7]} 43. Ke4 {[%clk 0:01:08.2]} 43... Rxg3 {[%clk 0:00:04.2]} 44. Kd5
{[%clk 0:01:09]} 44... Kb4 {[%clk 0:00:02.5]} 45. Rb7+ {[%clk 0:01:07]} 45...
Kc3 {[%clk 0:00:03]} 46. Rxh7 {[%clk 0:01:07.9]} 46... Rg4 {[%clk 0:00:03.2]}
47. Ra7 {[%clk 0:01:01.7]} 47... Rd4+ {[%clk 0:00:03.1]} 48. Kxc5 {[%clk
0:00:58.6]} 48... Rxc4+ {[%clk 0:00:03.5]} 49. Kd5 {[%clk 0:00:59.3]} 49... Rxh4
{[%clk 0:00:03.9]} 50. Ra3+ {[%clk 0:00:59.9]} 50... Kb4 {[%clk 0:00:04.3]} 51.
Rg3 {[%clk 0:01:00.6]} 51... Rh5+ {[%clk 0:00:03.9]} 52. Ke6 {[%clk 0:01:01.1]}
52... Rc5 {[%clk 0:00:04]} 53. Rg4+ {[%clk 0:01:00.4]} 53... Kb5 {[%clk
0:00:04.3]} 54. Rg1 {[%clk 0:01:00.2]} 54... g5 {[%clk 0:00:04.4]} 55. Kf6
{[%clk 0:01:00.5]} 55... Kc6 {[%clk 0:00:04.5]} 56. Ke6 {[%clk 0:01:00]} 56...
Kb5 {[%clk 0:00:03.6]} 57. Rg2 {[%clk 0:00:58.9]} 57... Kc4 {[%clk 0:00:03.3]}
58. Kd6 {[%clk 0:00:58]} 58... Ra5 {[%clk 0:00:03.7]} 59. Ke6 {[%clk 0:00:54.7]}
59... Kd4 {[%clk 0:00:04]} 60. Kf6 {[%clk 0:00:54.9]} 60... Ke4 {[%clk
0:00:04.2]} 61. Rg4+ {[%clk 0:00:46]} 61... Kf3 {[%clk 0:00:04.5]} 62. Rxg5
{[%clk 0:00:46.4]} 62... Ra6+ {[%clk 0:00:03.5]} 63. Ke7 {[%clk 0:00:46.7]}
63... Ra7+ {[%clk 0:00:03.8]} 64. Kd6 {[%clk 0:00:46.7]} 64... Ra6+ {[%clk
0:00:04.3]} 65. Kc7 {[%clk 0:00:47.3]} 65... Ra7+ {[%clk 0:00:04.6]} 66. Kb6
{[%clk 0:00:47.8]} 66... Kf4 {[%clk 0:00:04.8]} 67. Rg1 {[%clk 0:00:46.4]} 67...
Re7 {[%clk 0:00:04.8]} 68. Kc5 {[%clk 0:00:46.9]} 68... Re3 {[%clk 0:00:04.7]}
69. Kd5 {[%clk 0:00:47]} 69... Rd3+ {[%clk 0:00:04.5]} 70. Ke6 {[%clk
0:00:46.9]} 70... Re3+ {[%clk 0:00:05]} 71. Kf6 {[%clk 0:00:47.6]} 71... Rf3
{[%clk 0:00:05.4]} 72. Re1 {[%clk 0:00:47.2]} 72... Re3 {[%clk 0:00:05.3]} 73.
Ra1 {[%clk 0:00:47.9]} 73... Rf3 {[%clk 0:00:05.4]} 74. Ra4+ {[%clk 0:00:48.5]}
74... Ke3+ {[%clk 0:00:05.5]} 75. Ke5 {[%clk 0:00:49]} 75... Rf8 {[%clk
0:00:05.8]} 76. Ra3+ {[%clk 0:00:49.1]} 76... Ke2 {[%clk 0:00:06.3]} 77. Rh3
{[%clk 0:00:46.9]} 77... Kd2 {[%clk 0:00:05.9]} 78. Kd4 {[%clk 0:00:46.9]} 78...
Rd8+ {[%clk 0:00:05.9]} 79. Kc5 {[%clk 0:00:47.6]} 79... Rc8+ {[%clk 0:00:06]}
80. Kd6 {[%clk 0:00:47.8]} 80... Rd8+ {[%clk 0:00:06.5]} 81. Kc6 {[%clk
0:00:48.1]} 81... Rd3 {[%clk 0:00:07.4]} 82. Rh2+ {[%clk 0:00:48.3]} 82... Kc3
{[%clk 0:00:07.7]} 83. Kc5 {[%clk 0:00:48.9]} 83... Rg3 {[%clk 0:00:07.8]} 84.
Rh5 {[%clk 0:00:48.4]} 84... Rg8 {[%clk 0:00:07.8]} 85. Rh3+ {[%clk 0:00:48.3]}
85... Kd2 {[%clk 0:00:08.2]} 86. Kb4 {[%clk 0:00:48.9]} 86... Rb8+ {[%clk
0:00:08]} 87. Kc4 {[%clk 0:00:49.4]} 87... Rc8+ {[%clk 0:00:08.6]} 88. Kd5
{[%clk 0:00:50.1]} 88... Rd8+ {[%clk 0:00:09.1]} 89. Ke6 {[%clk 0:00:50.8]}
89... Re8+ {[%clk 0:00:09.6]} 90. Kd7 {[%clk 0:00:51.3]} 90... Re3 {[%clk
0:00:10.5]} 91. Rh6 {[%clk 0:00:51.3]} 91... Rd3+ {[%clk 0:00:10.6]} 92. Kc6
{[%clk 0:00:52]} 92... Kc3 {[%clk 0:00:10.8]} 93. Kc5 {[%clk 0:00:52.2]} 93...
Re3 {[%clk 0:00:11]} 94. Rh5 {[%clk 0:00:51.5]} 94... Rd3 {[%clk 0:00:11.4]} 95.
Rh4 {[%clk 0:00:50.4]} 95... Re3 {[%clk 0:00:11.1]} 96. Ra4 {[%clk 0:00:49.5]}
96... Re5+ {[%clk 0:00:11.1]} 97. Kd6 {[%clk 0:00:50.1]} 97... Rh5 {[%clk
0:00:11.4]} 98. Ra3+ {[%clk 0:00:50.5]} 98... Kb4 {[%clk 0:00:11.6]} 99. Rg3
{[%clk 0:00:51.4]} 99... Kc4 {[%clk 0:00:10.8]} 100. Rg4+ {[%clk 0:00:51.3]}
100... Kb5 {[%clk 0:00:11.2]} 101. Rg1 {[%clk 0:00:51.3]} 101... Kc4 {[%clk
0:00:10.9]} 102. Rd1 {[%clk 0:00:50.4]} 102... Rh8 {[%clk 0:00:10.2]} 103. Kc6
{[%clk 0:00:50.8]} 103... Rc8+ {[%clk 0:00:10]} 104. Kb7 {[%clk 0:00:51.3]}
104... Rh8 {[%clk 0:00:10.3]} 105. Kb6 {[%clk 0:00:51.2]} 105... Rb8+ {[%clk
0:00:09]} 106. Ka6 {[%clk 0:00:51.5]} 106... Rh8 {[%clk 0:00:09.9]} 107. Rc1+
{[%clk 0:00:51]} 107... Kd5 {[%clk 0:00:10.1]} 108. Kb7 {[%clk 0:00:50.3]}
108... Rh7+ {[%clk 0:00:09.9]} 109. Kb6 {[%clk 0:00:50.9]} 109... Rh6+ {[%clk
0:00:09.5]} 110. Kb5 {[%clk 0:00:51.1]} 110... Rh4 {[%clk 0:00:09]} 111. Rd1+
{[%clk 0:00:51.2]} 111... Rd4 {[%clk 0:00:08.8]} 112. Rg1 {[%clk 0:00:51.8]}
1/2-1/2